[Event "Titled Tuesday Blitz October 25 Late 2022"]
[White "Karacsonyi, Gellert"]
[Black "Pham, Khoi"]
[WhiteFideId "764620"]
[BlackFideId "1054988"]
[WhiteElo "2308"]
[BlackElo "2461"]
[Result "1-0"]
[Round "01"]
[TimeControl "180+1"]
[Date "2022.10.26"]
[WhiteClock "0:00:20"]
[BlackClock "0:00:01"]

1. e4 {[%clk 0:03:00]}  c6 {[%clk 0:02:56]} 2. d4 {[%clk 0:02:59]}  d5 {[%clk 0:02:55]} 3. exd5 {[%clk 0:03:00]}  cxd5 {[%clk 0:02:55]} 4. Bd3 {[%clk 0:03:00]}  Nc6 {[%clk 0:02:53]} 5. c3 {[%clk 0:03:00]}  Nf6 {[%clk 0:02:53]} 6. Bg5 {[%clk 0:03:00]}  g6 {[%clk 0:02:50]} 7. Nf3 {[%clk 0:03:00]}  Bg7 {[%clk 0:02:50]} 8. h3 {[%clk 0:03:00]}  a6 {[%clk 0:02:47]} 9. O-O {[%clk 0:02:59]}  Bf5 {[%clk 0:02:47]} 10. Re1 {[%clk 0:02:59]}  O-O {[%clk 0:02:44]} 11. Bf1 {[%clk 0:02:59]}  Re8 {[%clk 0:02:41]} 12. Nbd2 {[%clk 0:02:59]}  Rc8 {[%clk 0:02:39]} 13. Ne5 {[%clk 0:02:58]}  Nxe5 {[%clk 0:02:36]} 14. dxe5 {[%clk 0:02:59]}  Ne4 {[%clk 0:02:31]} 15. Nxe4 {[%clk 0:03:00]}  Bxe4 {[%clk 0:02:23]} 16. Qd4 {[%clk 0:02:38]}  Qc7 {[%clk 0:02:16]} 17. Bf4 {[%clk 0:02:29]}  f6 {[%clk 0:02:05]} 18. exf6 {[%clk 0:02:20]}  e5 {[%clk 0:02:04]} 19. Bxe5 {[%clk 0:02:14]}  Rxe5 {[%clk 0:02:04]} 20. fxg7 {[%clk 0:02:12]}  Rce8 {[%clk 0:01:59]} 21. f3 {[%clk 0:02:03]}  Bf5 {[%clk 0:01:56]} 22. Rxe5 {[%clk 0:02:01]}  Rxe5 {[%clk 0:01:57]} 23. f4 {[%clk 0:01:59]}  Re6 {[%clk 0:01:48]} 24. Qxd5 {[%clk 0:01:44]}  Qb6+ {[%clk 0:01:47]} 25. Kh1 {[%clk 0:01:38]}  Qxb2 {[%clk 0:01:47]} 26. Rd1 {[%clk 0:01:32]}  Kxg7 {[%clk 0:01:11]} 27. Qd8 {[%clk 0:01:10]}  Rf6 {[%clk 0:00:59]} 28. Bc4 {[%clk 0:01:04]}  Qb6 {[%clk 0:00:51]} 29. Qe7+ {[%clk 0:00:52]}  Kh6 {[%clk 0:00:51]} 30. Bg8 {[%clk 0:00:46]}  g5 {[%clk 0:00:46]} 31. fxg5+ {[%clk 0:00:39]}  Kxg5 {[%clk 0:00:47]} 32. Rd4 {[%clk 0:00:32]}  Bg6 {[%clk 0:00:08]} 33. Qe3+ {[%clk 0:00:25]}  Kh5 {[%clk 0:00:06]} 34. Rd5+ {[%clk 0:00:20]}  Kh4 {[%clk 0:00:01]} 35. Qg5# {[%clk 0:00:20]} 1-0


[Site "https://www.chess.com"]

[Event "Titled Tuesday Blitz October 25 Late 2022"]
[White "Karas, Marek"]
[Black "Deac, Bogdan-Daniel"]
[WhiteFideId "14928558"]
[BlackFideId "1226380"]
[WhiteElo "2220"]
[BlackElo "2648"]
[Result "0-1"]
[Round "01"]
[TimeControl "180+1"]
[Date "2022.10.26"]
[WhiteClock "0:00:01"]
[BlackClock "0:00:06"]

1. d4 {[%clk 0:03:00]}  Nf6 {[%clk 0:02:56]} 2. Nf3 {[%clk 0:03:00]}  e6 {[%clk 0:02:52]} 3. c4 {[%clk 0:02:57]}  b6 {[%clk 0:02:52]} 4. a3 {[%clk 0:02:51]}  Bb7 {[%clk 0:02:50]} 5. Nc3 {[%clk 0:02:51]}  g6 {[%clk 0:02:50]} 6. Bg5 {[%clk 0:02:47]}  h6 {[%clk 0:02:47]} 7. Bh4 {[%clk 0:02:46]}  Bg7 {[%clk 0:02:46]} 8. e3 {[%clk 0:02:46]}  O-O {[%clk 0:02:44]} 9. Be2 {[%clk 0:02:46]}  d6 {[%clk 0:02:45]} 10. O-O {[%clk 0:02:45]}  Nbd7 {[%clk 0:02:45]} 11. b4 {[%clk 0:02:45]}  g5 {[%clk 0:02:39]} 12. Bg3 {[%clk 0:02:45]}  Nh5 {[%clk 0:02:39]} 13. Nd2 {[%clk 0:02:41]}  Nxg3 {[%clk 0:02:39]} 14. hxg3 {[%clk 0:02:42]}  c5 {[%clk 0:02:17]} 15. Nb3 {[%clk 0:02:34]}  cxd4 {[%clk 0:02:17]} 16. Nxd4 {[%clk 0:02:29]}  a6 {[%clk 0:02:16]} 17. Rc1 {[%clk 0:02:26]}  Rc8 {[%clk 0:02:14]} 18. Nb1 {[%clk 0:02:12]}  Qe7 {[%clk 0:02:03]} 19. Bf3 {[%clk 0:02:10]}  Ne5 {[%clk 0:01:27]} 20. Bxb7 {[%clk 0:02:03]}  Qxb7 {[%clk 0:01:28]} 21. Qe2 {[%clk 0:01:57]}  Rc7 {[%clk 0:01:13]} 22. Nd2 {[%clk 0:01:45]}  Rfc8 {[%clk 0:01:12]} 23. N4f3 {[%clk 0:01:41]}  Nxf3+ {[%clk 0:00:49]} 24. Nxf3 {[%clk 0:01:36]}  b5 {[%clk 0:00:31]} 25. Rfd1 {[%clk 0:01:10]}  Bf8 {[%clk 0:00:28]} 26. Nd2 {[%clk 0:01:03]}  bxc4 {[%clk 0:00:26]} 27. e4 {[%clk 0:00:45]}  Qb5 {[%clk 0:00:20]} 28. Nb1 {[%clk 0:00:40]}  Qa4 {[%clk 0:00:15]} 29. Qe3 {[%clk 0:00:20]}  c3 {[%clk 0:00:14]} 30. Re1 {[%clk 0:00:17]}  c2 {[%clk 0:00:13]} 31. Nd2 {[%clk 0:00:17]}  Rc3 {[%clk 0:00:14]} 32. Qd4 {[%clk 0:00:14]}  Qxa3 {[%clk 0:00:13]} 33. e5 {[%clk 0:00:11]}  d5 {[%clk 0:00:13]} 34. Nf1 {[%clk 0:00:08]}  Qxb4 {[%clk 0:00:12]} 35. Qd2 {[%clk 0:00:07]}  R3c4 {[%clk 0:00:11]} 36. Qe2 {[%clk 0:00:07]}  Qb2 {[%clk 0:00:05]} 37. Ne3 {[%clk 0:00:07]}  a5 {[%clk 0:00:05]} 38. Nxc4 {[%clk 0:00:07]}  Rxc4 {[%clk 0:00:06]} 39. Qf3 {[%clk 0:00:01]}  a4 {[%clk 0:00:06]} 0-1


[Site "https://www.chess.com"]

[Event "Titled Tuesday Blitz October 25 Late 2022"]
[White "Kirillov, Dmitry"]
[Black "Harvey, Marcus R"]
[WhiteFideId "34180572"]
[BlackFideId "400092"]
[WhiteElo "2095"]
[BlackElo "2457"]
[Result "1-0"]
[Round "01"]
[TimeControl "180+1"]
[Date "2022.10.26"]
[WhiteClock "0:00:33"]
[BlackClock "0:00:04"]

1. e4 {[%clk 0:02:54]}  e6 {[%clk 0:02:56]} 2. d4 {[%clk 0:02:54]}  d5 {[%clk 0:02:55]} 3. Nd2 {[%clk 0:02:54]}  a6 {[%clk 0:02:55]} 4. exd5 {[%clk 0:02:45]}  exd5 {[%clk 0:02:55]} 5. c3 {[%clk 0:02:45]}  Bd6 {[%clk 0:02:55]} 6. Ngf3 {[%clk 0:02:45]}  Ne7 {[%clk 0:02:54]} 7. Bd3 {[%clk 0:02:45]}  O-O {[%clk 0:02:53]} 8. O-O {[%clk 0:02:42]}  Nbc6 {[%clk 0:02:47]} 9. h3 {[%clk 0:02:34]}  Bf5 {[%clk 0:02:45]} 10. Nb3 {[%clk 0:02:32]}  Qd7 {[%clk 0:02:37]} 11. Nc5 {[%clk 0:02:28]}  Bxc5 {[%clk 0:02:37]} 12. dxc5 {[%clk 0:02:29]}  Rad8 {[%clk 0:02:33]} 13. Bxf5 {[%clk 0:02:20]}  Nxf5 {[%clk 0:02:32]} 14. Bf4 {[%clk 0:02:15]}  Rfe8 {[%clk 0:02:20]} 15. Qd3 {[%clk 0:02:13]}  Nfe7 {[%clk 0:01:44]} 16. Rfe1 {[%clk 0:02:03]}  Ng6 {[%clk 0:01:44]} 17. Bg3 {[%clk 0:02:03]}  Nce7 {[%clk 0:01:31]} 18. Rad1 {[%clk 0:01:58]}  c6 {[%clk 0:01:29]} 19. h4 {[%clk 0:01:49]}  Nf5 {[%clk 0:01:23]} 20. h5 {[%clk 0:01:39]}  Nxg3 {[%clk 0:01:10]} 21. hxg6 {[%clk 0:01:38]}  Ne4 {[%clk 0:01:00]} 22. Rxe4 {[%clk 0:01:11]}  Rxe4 {[%clk 0:00:54]} 23. gxf7+ {[%clk 0:01:09]}  Kf8 {[%clk 0:00:33]} 24. Ng5 {[%clk 0:01:09]}  Rh4 {[%clk 0:00:24]} 25. Qf3 {[%clk 0:00:48]}  Qe7 {[%clk 0:00:16]} 26. Qf5 {[%clk 0:00:42]}  Qf6 {[%clk 0:00:02]} 27. Ne6+ {[%clk 0:00:39]}  Ke7 {[%clk 0:00:02]} 28. Qxf6+ {[%clk 0:00:34]}  gxf6 {[%clk 0:00:03]} 29. Nxd8 {[%clk 0:00:34]}  Re4 {[%clk 0:00:03]} 30. Nxb7 {[%clk 0:00:33]}  Kxf7 {[%clk 0:00:04]} 31. Nd6+ {[%clk 0:00:33]} 1-0


[Site "https://www.chess.com"]

[Event "Titled Tuesday Blitz October 25 Late 2022"]
[White "Kisic, Bozidar"]
[Black "Maksimovic, Bojan"]
[WhiteFideId "16500350"]
[BlackFideId "14408120"]
[WhiteElo "2233"]
[BlackElo "2447"]
[Result "0-1"]
[Round "01"]
[TimeControl "180+1"]
[Date "2022.10.26"]
[WhiteClock "0:02:10"]
[BlackClock "0:01:34"]

1. d4 {[%clk 0:02:59]}  Nf6 {[%clk 0:02:58]} 2. Bg5 {[%clk 0:02:58]}  g6 {[%clk 0:02:55]} 3. Bxf6 {[%clk 0:02:58]}  exf6 {[%clk 0:02:56]} 4. e3 {[%clk 0:02:58]}  d5 {[%clk 0:02:54]} 5. g3 {[%clk 0:02:59]}  h5 {[%clk 0:02:33]} 6. h4 {[%clk 0:02:57]}  Be6 {[%clk 0:02:31]} 7. Ne2 {[%clk 0:02:57]}  Bd6 {[%clk 0:02:30]} 8. Bg2 {[%clk 0:02:54]}  c6 {[%clk 0:02:30]} 9. Nd2 {[%clk 0:02:54]}  Nd7 {[%clk 0:02:29]} 10. c3 {[%clk 0:02:53]}  f5 {[%clk 0:02:12]} 11. Qb3 {[%clk 0:02:51]}  Qb6 {[%clk 0:02:11]} 12. Nf4 {[%clk 0:02:49]}  Bxf4 {[%clk 0:02:08]} 13. gxf4 {[%clk 0:02:49]}  Nf6 {[%clk 0:02:06]} 14. Nf3 {[%clk 0:02:39]}  Ne4 {[%clk 0:01:56]} 15. Ng5 {[%clk 0:02:38]}  Nd6 {[%clk 0:01:54]} 16. Bf1 {[%clk 0:02:31]}  Ke7 {[%clk 0:01:53]} 17. Bd3 {[%clk 0:02:30]}  Qxb3 {[%clk 0:01:49]} 18. axb3 {[%clk 0:02:30]}  a5 {[%clk 0:01:49]} 19. Kd2 {[%clk 0:02:29]}  Bd7 {[%clk 0:01:41]} 20. Ra2 {[%clk 0:02:27]}  f6 {[%clk 0:01:37]} 21. Nh3 {[%clk 0:02:18]}  Ne4+ {[%clk 0:01:33]} 22. Ke2 {[%clk 0:02:10]}  b6 {[%clk 0:01:34]} 0-1


[Site "https://www.chess.com"]

[Event "Titled Tuesday Blitz October 25 Late 2022"]
[White "Koellner, Ruben Gideon"]
[Black "Harish, Neeraj"]
[WhiteFideId "12993093"]
[BlackFideId "30958130"]
[WhiteElo "2303"]
[BlackElo "1815"]
[Result "1-0"]
[Round "01"]
[TimeControl "180+1"]
[Date "2022.10.26"]
[WhiteClock "0:01:05"]
[BlackClock "0:00:17"]

1. d4 {[%clk 0:02:59]}  d5 {[%clk 0:02:58]} 2. Nf3 {[%clk 0:02:57]}  Nf6 {[%clk 0:02:57]} 3. Nbd2 {[%clk 0:02:54]}  Bf5 {[%clk 0:02:46]} 4. e3 {[%clk 0:02:54]}  e6 {[%clk 0:02:46]} 5. Ne5 {[%clk 0:02:54]}  Bd6 {[%clk 0:02:39]} 6. g4 {[%clk 0:02:52]}  Bg6 {[%clk 0:02:18]} 7. h4 {[%clk 0:02:50]}  h6 {[%clk 0:01:42]} 8. Nxg6 {[%clk 0:02:48]}  fxg6 {[%clk 0:01:43]} 9. Bd3 {[%clk 0:02:48]}  O-O {[%clk 0:01:27]} 10. Bxg6 {[%clk 0:02:42]}  c5 {[%clk 0:01:26]} 11. c3 {[%clk 0:02:35]}  Nc6 {[%clk 0:01:23]} 12. g5 {[%clk 0:02:14]}  Nd7 {[%clk 0:01:02]} 13. Qh5 {[%clk 0:02:08]}  cxd4 {[%clk 0:00:52]} 14. exd4 {[%clk 0:01:58]}  e5 {[%clk 0:00:50]} 15. gxh6 {[%clk 0:01:39]}  Qf6 {[%clk 0:00:49]} 16. hxg7 {[%clk 0:01:31]}  Qxg7 {[%clk 0:00:26]} 17. Rg1 {[%clk 0:01:27]}  exd4 {[%clk 0:00:17]} 18. Bh7+ {[%clk 0:01:05]} 1-0


[Site "https://www.chess.com"]

[Event "Titled Tuesday Blitz October 25 Late 2022"]
[White "Koutlas, Nikolaos"]
[Black "Baskakov, Egor"]
[WhiteFideId "25827138"]
[BlackFideId "24197866"]
[WhiteElo "2167"]
[BlackElo "2211"]
[Result "1/2-1/2"]
[Round "01"]
[TimeControl "180+1"]
[Date "2022.10.26"]
[WhiteClock "0:00:04"]
[BlackClock "0:00:52"]

1. Nf3 {[%clk 0:02:41]}  Nf6 {[%clk 0:02:58]} 2. g3 {[%clk 0:02:41]}  e6 {[%clk 0:02:58]} 3. Bg2 {[%clk 0:02:42]}  d5 {[%clk 0:02:59]} 4. O-O {[%clk 0:02:41]}  Be7 {[%clk 0:02:59]} 5. c4 {[%clk 0:02:42]}  O-O {[%clk 0:03:00]} 6. b3 {[%clk 0:02:42]}  b6 {[%clk 0:03:00]} 7. Bb2 {[%clk 0:02:42]}  Bb7 {[%clk 0:03:00]} 8. cxd5 {[%clk 0:02:42]}  exd5 {[%clk 0:03:00]} 9. d4 {[%clk 0:02:43]}  Ne4 {[%clk 0:03:01]} 10. Ne5 {[%clk 0:02:41]}  f5 {[%clk 0:02:58]} 11. Nc3 {[%clk 0:02:40]}  a6 {[%clk 0:02:57]} 12. Rc1 {[%clk 0:02:39]}  Nd7 {[%clk 0:02:57]} 13. e3 {[%clk 0:02:38]}  Bd6 {[%clk 0:02:55]} 14. Ne2 {[%clk 0:02:37]}  Qe7 {[%clk 0:02:49]} 15. Nf4 {[%clk 0:02:32]}  Rad8 {[%clk 0:02:41]} 16. Nfd3 {[%clk 0:02:18]}  Rde8 {[%clk 0:02:35]} 17. Qh5 {[%clk 0:01:56]}  g6 {[%clk 0:02:25]} 18. Qe2 {[%clk 0:01:51]}  Ng5 {[%clk 0:02:09]} 19. Nc6 {[%clk 0:01:45]}  Qf7 {[%clk 0:02:08]} 20. Ndb4 {[%clk 0:01:39]}  Ne4 {[%clk 0:02:06]} 21. Nxa6 {[%clk 0:01:32]}  Ra8 {[%clk 0:02:04]} 22. Nab4 {[%clk 0:01:30]}  Bxc6 {[%clk 0:02:04]} 23. Nxc6 {[%clk 0:01:27]}  Rxa2 {[%clk 0:02:05]} 24. Ra1 {[%clk 0:01:19]}  Rfa8 {[%clk 0:02:04]} 25. Qb5 {[%clk 0:01:08]}  Ndf6 {[%clk 0:01:52]} 26. Nb4 {[%clk 0:00:59]}  Rxa1 {[%clk 0:01:46]} 27. Rxa1 {[%clk 0:00:58]}  Rxa1+ {[%clk 0:01:45]} 28. Bxa1 {[%clk 0:00:58]}  Qe6 {[%clk 0:01:40]} 29. Bb2 {[%clk 0:00:51]}  h5 {[%clk 0:01:36]} 30. Nd3 {[%clk 0:00:40]}  Nxf2 {[%clk 0:01:25]} 31. Nxf2 {[%clk 0:00:36]}  Qxe3 {[%clk 0:01:25]} 32. Qd3 {[%clk 0:00:29]}  Qe1+ {[%clk 0:01:24]} 33. Qf1 {[%clk 0:00:28]}  Qd2 {[%clk 0:01:23]} 34. Qc1 {[%clk 0:00:24]}  Qb4 {[%clk 0:01:18]} 35. Qh6 {[%clk 0:00:21]}  Kf7 {[%clk 0:01:15]} 36. Nd3 {[%clk 0:00:18]}  Qxb3 {[%clk 0:01:13]} 37. Qe3 {[%clk 0:00:17]}  Kg7 {[%clk 0:01:08]} 38. Qe2 {[%clk 0:00:11]}  Ne4 {[%clk 0:01:06]} 39. Bc1 {[%clk 0:00:09]}  Nc3 {[%clk 0:01:00]} 40. Qe3 {[%clk 0:00:08]}  Qd1+ {[%clk 0:00:59]} 41. Bf1 {[%clk 0:00:07]}  Ne4 {[%clk 0:00:58]} 42. Qh6+ {[%clk 0:00:06]}  Kf7 {[%clk 0:00:51]} 43. Qh7+ {[%clk 0:00:06]}  Kf6 {[%clk 0:00:51]} 44. Qh8+ {[%clk 0:00:05]}  Kf7 {[%clk 0:00:52]} 45. Qh7+ {[%clk 0:00:05]}  Kf6 {[%clk 0:00:52]} 46. Qh8+ {[%clk 0:00:06]}  Kf7 {[%clk 0:00:52]} 47. Qh7+ {[%clk 0:00:04]} 1/2-1/2


[Site "https://www.chess.com"]

[Event "Titled Tuesday Blitz October 25 Late 2022"]
[White "Krastev, Alexander"]
[Black "Almedina Ortiz, Edgardo J."]
[WhiteFideId "12989983"]
[BlackFideId "3100197"]
[WhiteElo "2567"]
[BlackElo "2217"]
[Result "0-1"]
[Round "01"]
[TimeControl "180+1"]
[Date "2022.10.26"]
[WhiteClock "0:00:03"]
[BlackClock "0:00:16"]

1. e4 {[%clk 0:02:59]}  e5 {[%clk 0:02:59]} 2. Nc3 {[%clk 0:02:58]}  Nf6 {[%clk 0:02:57]} 3. f4 {[%clk 0:02:58]}  d5 {[%clk 0:02:56]} 4. fxe5 {[%clk 0:02:58]}  Nxe4 {[%clk 0:02:56]} 5. Qf3 {[%clk 0:02:59]}  Nc6 {[%clk 0:02:47]} 6. Bb5 {[%clk 0:02:59]}  Nxc3 {[%clk 0:02:45]} 7. dxc3 {[%clk 0:02:59]}  Qh4+ {[%clk 0:02:45]} 8. g3 {[%clk 0:03:00]}  Qe4+ {[%clk 0:02:45]} 9. Qxe4 {[%clk 0:03:00]}  dxe4 {[%clk 0:02:46]} 10. Ne2 {[%clk 0:03:01]}  Bd7 {[%clk 0:02:28]} 11. Bxc6 {[%clk 0:03:01]}  Bxc6 {[%clk 0:02:29]} 12. Rf1 {[%clk 0:03:02]}  h5 {[%clk 0:02:20]} 13. Be3 {[%clk 0:02:49]}  h4 {[%clk 0:02:18]} 14. O-O-O {[%clk 0:02:37]}  hxg3 {[%clk 0:01:58]} 15. hxg3 {[%clk 0:02:38]}  Bb5 {[%clk 0:01:56]} 16. Rf2 {[%clk 0:02:34]}  Be7 {[%clk 0:01:45]} 17. Nd4 {[%clk 0:02:31]}  Bd7 {[%clk 0:01:39]} 18. Nf5 {[%clk 0:02:14]}  Bf8 {[%clk 0:01:29]} 19. Bg5 {[%clk 0:01:25]}  Rh5 {[%clk 0:01:14]} 20. Nxg7+ {[%clk 0:00:42]}  Bxg7 {[%clk 0:01:11]} 21. Rxd7 {[%clk 0:00:42]}  Rxg5 {[%clk 0:00:57]} 22. Rfxf7 {[%clk 0:00:42]}  Bf8 {[%clk 0:00:49]} 23. e6 {[%clk 0:00:17]}  Rxg3 {[%clk 0:00:41]} 24. Rxc7 {[%clk 0:00:14]}  Rd8 {[%clk 0:00:35]} 25. Rfd7 {[%clk 0:00:14]}  Bh6+ {[%clk 0:00:30]} 26. Kd1 {[%clk 0:00:13]}  Bg5 {[%clk 0:00:25]} 27. Rxb7 {[%clk 0:00:13]}  e3 {[%clk 0:00:21]} 28. Rxd8+ {[%clk 0:00:11]}  Bxd8 {[%clk 0:00:20]} 29. Ke2 {[%clk 0:00:04]}  Bb6 {[%clk 0:00:19]} 30. Rf7 {[%clk 0:00:03]}  Rg2+ {[%clk 0:00:19]} 31. Ke1 {[%clk 0:00:03]}  Rxc2 {[%clk 0:00:18]} 32. a4 {[%clk 0:00:02]}  Rxb2 {[%clk 0:00:17]} 33. Rb7 {[%clk 0:00:03]}  Ra2 {[%clk 0:00:16]} 0-1


[Site "https://www.chess.com"]

[Event "Titled Tuesday Blitz October 25 Late 2022"]
[White "Kravtsiv, Martyn"]
[Black "Goncalves, Davi Sulzbacher"]
[WhiteFideId "14113147"]
[BlackFideId "2154510"]
[WhiteElo "2694"]
[BlackElo "2182"]
[Result "1-0"]
[Round "01"]
[TimeControl "180+1"]
[Date "2022.10.26"]
[WhiteClock "0:02:31"]
[BlackClock "0:00:48"]

1. e4 {[%clk 0:03:00]}  c5 {[%clk 0:02:59]} 2. Nf3 {[%clk 0:03:01]}  Nc6 {[%clk 0:03:00]} 3. d4 {[%clk 0:03:00]}  cxd4 {[%clk 0:03:01]} 4. Nxd4 {[%clk 0:03:00]}  Nf6 {[%clk 0:03:01]} 5. Nc3 {[%clk 0:02:59]}  e5 {[%clk 0:03:02]} 6. Ndb5 {[%clk 0:02:59]}  d6 {[%clk 0:03:03]} 7. Bg5 {[%clk 0:02:59]}  a6 {[%clk 0:03:03]} 8. Na3 {[%clk 0:02:58]}  b5 {[%clk 0:03:04]} 9. Nd5 {[%clk 0:02:58]}  Be7 {[%clk 0:03:03]} 10. Bxf6 {[%clk 0:02:58]}  Bxf6 {[%clk 0:03:03]} 11. c4 {[%clk 0:02:59]}  b4 {[%clk 0:03:03]} 12. Nc2 {[%clk 0:02:58]}  Bg5 {[%clk 0:03:03]} 13. g3 {[%clk 0:02:57]}  O-O {[%clk 0:03:01]} 14. Bg2 {[%clk 0:02:58]}  Qa5 {[%clk 0:03:00]} 15. O-O {[%clk 0:02:56]}  Qc5 {[%clk 0:02:57]} 16. b3 {[%clk 0:02:50]}  a5 {[%clk 0:02:56]} 17. Kh1 {[%clk 0:02:45]}  a4 {[%clk 0:02:20]} 18. f4 {[%clk 0:02:44]}  Bd8 {[%clk 0:02:20]} 19. Qd2 {[%clk 0:02:41]}  Rb8 {[%clk 0:02:02]} 20. f5 {[%clk 0:02:40]}  Bb6 {[%clk 0:01:16]} 21. f6 {[%clk 0:02:35]}  Bd8 {[%clk 0:00:48]} 22. Qg5 {[%clk 0:02:31]} 1-0


[Site "https://www.chess.com"]

[Event "Titled Tuesday Blitz October 25 Late 2022"]
[White "Lamaze, Simon"]
[Black "Zeman, Matyas"]
[WhiteFideId "36069264"]
[BlackFideId "364398"]
[WhiteElo "2272"]
[BlackElo "2254"]
[Result "1-0"]
[Round "01"]
[TimeControl "180+1"]
[Date "2022.10.26"]
[WhiteClock "0:01:08"]
[BlackClock "0:00:06"]

1. d4 {[%clk 0:02:57]}  Nf6 {[%clk 0:03:00]} 2. c4 {[%clk 0:02:57]}  e6 {[%clk 0:03:00]} 3. g3 {[%clk 0:02:56]}  d5 {[%clk 0:03:00]} 4. Nf3 {[%clk 0:02:57]}  Bb4+ {[%clk 0:03:00]} 5. Bd2 {[%clk 0:02:56]}  Be7 {[%clk 0:03:01]} 6. Bg2 {[%clk 0:02:56]}  O-O {[%clk 0:03:01]} 7. Qc2 {[%clk 0:02:56]}  Nbd7 {[%clk 0:03:01]} 8. h4 {[%clk 0:02:56]}  c5 {[%clk 0:02:51]} 9. cxd5 {[%clk 0:02:55]}  exd5 {[%clk 0:02:51]} 10. Nc3 {[%clk 0:02:54]}  Re8 {[%clk 0:02:46]} 11. O-O {[%clk 0:02:53]}  b6 {[%clk 0:02:46]} 12. Rfd1 {[%clk 0:02:51]}  Bb7 {[%clk 0:02:45]} 13. Bf4 {[%clk 0:02:50]}  c4 {[%clk 0:02:43]} 14. Ne5 {[%clk 0:02:49]}  a6 {[%clk 0:02:42]} 15. Nxc4 {[%clk 0:02:45]}  Nf8 {[%clk 0:02:28]} 16. Ne5 {[%clk 0:02:41]}  Ne6 {[%clk 0:02:28]} 17. Be3 {[%clk 0:02:40]}  Rc8 {[%clk 0:02:28]} 18. Qb3 {[%clk 0:02:40]}  b5 {[%clk 0:02:25]} 19. a4 {[%clk 0:02:38]}  b4 {[%clk 0:02:24]} 20. Na2 {[%clk 0:02:37]}  a5 {[%clk 0:02:24]} 21. Rac1 {[%clk 0:02:37]}  Qb6 {[%clk 0:02:24]} 22. Nc3 {[%clk 0:02:24]}  Red8 {[%clk 0:01:43]} 23. Nb5 {[%clk 0:02:16]}  Ne4 {[%clk 0:01:38]} 24. Bh3 {[%clk 0:01:56]}  Bf6 {[%clk 0:01:20]} 25. Rxc8 {[%clk 0:01:52]}  Rxc8 {[%clk 0:01:20]} 26. Nd7 {[%clk 0:01:52]}  Qd8 {[%clk 0:01:11]} 27. Nc5 {[%clk 0:01:43]}  N6xc5 {[%clk 0:00:58]} 28. dxc5 {[%clk 0:01:42]}  Nxc5 {[%clk 0:00:59]} 29. Qc2 {[%clk 0:01:33]}  Ne6 {[%clk 0:00:59]} 30. Qd2 {[%clk 0:01:25]}  Rc4 {[%clk 0:00:52]} 31. b3 {[%clk 0:01:20]}  Rc6 {[%clk 0:00:34]} 32. Nd4 {[%clk 0:01:19]}  Nxd4 {[%clk 0:00:23]} 33. Bxd4 {[%clk 0:01:20]}  Bxd4 {[%clk 0:00:20]} 34. Qxd4 {[%clk 0:01:21]}  Rc3 {[%clk 0:00:20]} 35. Rd3 {[%clk 0:01:20]}  Rxd3 {[%clk 0:00:20]} 36. Qxd3 {[%clk 0:01:18]}  g6 {[%clk 0:00:18]} 37. Qb5 {[%clk 0:01:17]}  Qe7 {[%clk 0:00:16]} 38. e3 {[%clk 0:01:16]}  Qc7 {[%clk 0:00:14]} 39. Bg2 {[%clk 0:01:09]}  Qc3 {[%clk 0:00:06]} 40. Qxb7 {[%clk 0:01:08]} 1-0


[Site "https://www.chess.com"]

[Event "Titled Tuesday Blitz October 25 Late 2022"]
[White "Lewicki, Miroslaw"]
[Black "Gedgafov, Chamal"]
[WhiteFideId "1113380"]
[BlackFideId "34130621"]
[WhiteElo "2236"]
[BlackElo "2067"]
[Result "1-0"]
[Round "01"]
[TimeControl "180+1"]
[Date "2022.10.26"]
[WhiteClock "0:00:53"]
[BlackClock "0:00:41"]

1. f3 {[%clk 0:02:58]}  d5 {[%clk 0:02:55]} 2. Kf2 {[%clk 0:02:56]}  c6 {[%clk 0:02:55]} 3. g3 {[%clk 0:02:55]}  e5 {[%clk 0:02:54]} 4. Kg2 {[%clk 0:02:55]}  h5 {[%clk 0:02:54]} 5. h4 {[%clk 0:02:54]}  Nd7 {[%clk 0:02:52]} 6. d3 {[%clk 0:02:55]}  Ngf6 {[%clk 0:02:52]} 7. e4 {[%clk 0:02:54]}  Bd6 {[%clk 0:02:53]} 8. Nh3 {[%clk 0:02:54]}  Qe7 {[%clk 0:02:51]} 9. Ng5 {[%clk 0:02:52]}  Nf8 {[%clk 0:02:51]} 10. Nc3 {[%clk 0:02:47]}  Ne6 {[%clk 0:02:46]} 11. exd5 {[%clk 0:02:44]}  Nxd5 {[%clk 0:02:45]} 12. Nce4 {[%clk 0:02:42]}  Bc7 {[%clk 0:02:43]} 13. c4 {[%clk 0:02:40]}  Nf6 {[%clk 0:02:38]} 14. Nxe6 {[%clk 0:02:37]}  Bxe6 {[%clk 0:02:37]} 15. Bg5 {[%clk 0:02:35]}  O-O-O {[%clk 0:02:33]} 16. Qa4 {[%clk 0:02:20]}  Kb8 {[%clk 0:02:32]} 17. b4 {[%clk 0:02:13]}  Bf5 {[%clk 0:02:27]} 18. c5 {[%clk 0:01:53]}  Qe6 {[%clk 0:02:05]} 19. Rb1 {[%clk 0:01:50]}  a6 {[%clk 0:01:58]} 20. Be2 {[%clk 0:01:44]}  Rd4 {[%clk 0:01:57]} 21. Rhc1 {[%clk 0:01:41]}  Bh3+ {[%clk 0:01:53]} 22. Kf2 {[%clk 0:01:40]}  Nxe4+ {[%clk 0:01:52]} 23. dxe4 {[%clk 0:01:40]}  Qd7 {[%clk 0:01:45]} 24. Be3 {[%clk 0:01:37]}  Be6 {[%clk 0:01:43]} 25. Qc2 {[%clk 0:01:32]}  Rd8 {[%clk 0:01:41]} 26. a4 {[%clk 0:01:31]}  f5 {[%clk 0:01:37]} 27. b5 {[%clk 0:01:29]}  axb5 {[%clk 0:01:36]} 28. axb5 {[%clk 0:01:29]}  fxe4 {[%clk 0:01:34]} 29. bxc6 {[%clk 0:01:29]}  Qxc6 {[%clk 0:01:30]} 30. Bxd4 {[%clk 0:01:29]}  exd4 {[%clk 0:01:29]} 31. Qxe4 {[%clk 0:01:27]}  Bd5 {[%clk 0:01:28]} 32. Qf5 {[%clk 0:01:25]}  Be6 {[%clk 0:01:16]} 33. Bb5 {[%clk 0:01:08]}  Qd5 {[%clk 0:01:12]} 34. Qxd5 {[%clk 0:01:08]}  Bxd5 {[%clk 0:01:13]} 35. Bd3 {[%clk 0:01:03]}  Rf8 {[%clk 0:01:12]} 36. Be2 {[%clk 0:01:00]}  d3 {[%clk 0:01:12]} 37. Bd1 {[%clk 0:00:59]}  Be5 {[%clk 0:01:12]} 38. Rb4 {[%clk 0:00:58]}  Kc7 {[%clk 0:01:07]} 39. f4 {[%clk 0:00:55]}  d2 {[%clk 0:00:44]} 40. Rc2 {[%clk 0:00:54]}  Be4 {[%clk 0:00:41]} 41. Rxe4 {[%clk 0:00:53]} 1-0


[Site "https://www.chess.com"]